[Event "*** SCC Grand Prix: Titled Tuesday Blitz"]
[Site "Chess.com"]
[Date "2020.06.09"]
[Round "7"]
[White "GM_dmitrij"]
[Black "SketchyMoves"]
[Result "1-0"]
[WhiteElo "2955"]
[BlackElo "2654"]
[TimeControl "180+1"]
[EndTime "10:19:05 PDT"]
[Termination "GM_dmitrij won on time"]

1. e4 {[%clk 0:03:00.9]} 1... c6 {[%clk 0:02:59.2]} 2. d4 {[%clk 0:03:00.2]}
2... d5 {[%clk 0:02:59.5]} 3. e5 {[%clk 0:03:00.7]} 3... Bf5 {[%clk 0:02:59.2]}
4. Be2 {[%clk 0:03:01.1]} 4... e6 {[%clk 0:02:57]} 5. c3 {[%clk 0:03:01.6]} 5...
c5 {[%clk 0:02:55.1]} 6. Nf3 {[%clk 0:03:01.2]} 6... Nc6 {[%clk 0:02:55]} 7. O-O
{[%clk 0:03:00.5]} 7... cxd4 {[%clk 0:02:48.9]} 8. Nxd4 {[%clk 0:03:01.4]} 8...
Nge7 {[%clk 0:02:45]} 9. Nxf5 {[%clk 0:03:01.6]} 9... Nxf5 {[%clk 0:02:44.9]}
10. Bd3 {[%clk 0:03:02.2]} 10... g6 {[%clk 0:02:36.3]} 11. Qe2 {[%clk
0:03:01.7]} 11... Bg7 {[%clk 0:02:30.8]} 12. f4 {[%clk 0:03:01.9]} 12... h5
{[%clk 0:02:28.3]} 13. Nd2 {[%clk 0:02:57.7]} 13... Qb6+ {[%clk 0:02:22.6]} 14.
Kh1 {[%clk 0:02:39.9]} 14... h4 {[%clk 0:02:19.6]} 15. Bxf5 {[%clk 0:02:40.1]}
15... gxf5 {[%clk 0:02:20.1]} 16. Nf3 {[%clk 0:02:40.5]} 16... h3 {[%clk
0:02:14.2]} 17. g3 {[%clk 0:02:33.6]} 17... Bf8 {[%clk 0:02:13.9]} 18. b4 {[%clk
0:02:30.4]} 18... a6 {[%clk 0:02:07.4]} 19. Be3 {[%clk 0:02:30.2]} 19... Qc7
{[%clk 0:02:06.3]} 20. a4 {[%clk 0:02:27.7]} 20... Be7 {[%clk 0:01:58.6]} 21.
Rfb1 {[%clk 0:02:21.6]} 21... d4 {[%clk 0:01:42.3]} 22. Bxd4 {[%clk 0:02:14.2]}
22... Nxd4 {[%clk 0:01:33.8]} 23. cxd4 {[%clk 0:02:15.1]} 23... Rc8 {[%clk
0:01:31.6]} 24. d5 {[%clk 0:02:02.5]} 24... Qd7 {[%clk 0:01:04.5]} 25. d6 {[%clk
0:01:59.6]} 25... Bd8 {[%clk 0:01:04.4]} 26. a5 {[%clk 0:01:38.6]} 26... Kf8
{[%clk 0:00:57.7]} 27. Rc1 {[%clk 0:01:35.2]} 27... Kg7 {[%clk 0:00:56]} 28. Qe3
{[%clk 0:01:02.7]} 28... Rxc1+ {[%clk 0:00:47.4]} 29. Rxc1 {[%clk 0:01:03.6]}
29... Qb5 {[%clk 0:00:47.5]} 30. Qd2 {[%clk 0:00:45.9]} 30... b6 {[%clk
0:00:44.3]} 31. Nd4 {[%clk 0:00:36.3]} 31... Qd5+ {[%clk 0:00:39]} 32. Kg1
{[%clk 0:00:36.6]} 32... Kg6 {[%clk 0:00:37.7]} 33. Ra1 {[%clk 0:00:10.6]} 33...
bxa5 {[%clk 0:00:32.9]} 34. bxa5 {[%clk 0:00:11.5]} 34... Rg8 {[%clk 0:00:17.2]}
35. Ra4 {[%clk 0:00:11.1]} 35... Rh8 {[%clk 0:00:17]} 36. Qa2 {[%clk 0:00:08.6]}
36... Qe4 {[%clk 0:00:13.3]} 37. Qe2 {[%clk 0:00:07.5]} 37... Qd5 {[%clk
0:00:08.4]} 38. Nf3 {[%clk 0:00:04.8]} 38... Bxa5 {[%clk 0:00:05.2]} 39. Ra1
{[%clk 0:00:04]} 39... Bb6+ {[%clk 0:00:04.5]} 40. Kh1 {[%clk 0:00:04.6]} 40...
Rc8 {[%clk 0:00:02.9]} 41. Rd1 {[%clk 0:00:05.1]} 1-0

[Event "*** SCC Grand Prix: Titled Tuesday Blitz"]
[Site "Chess.com"]
[Date "2020.06.09"]
[Round "7"]
[White "Kostya26"]
[Black "davidkalashian"]
[Result "0-1"]
[WhiteElo "2428"]
[BlackElo "2597"]
[TimeControl "180+1"]
[EndTime "10:19:06 PDT"]
[Termination "davidkalashian won by checkmate"]

1. d4 {[%clk 0:03:00.9]} 1... Nf6 {[%clk 0:02:57]} 2. Nf3 {[%clk 0:03:00.8]}
2... e6 {[%clk 0:02:55.6]} 3. Bf4 {[%clk 0:03:00.8]} 3... b6 {[%clk 0:02:53.5]}
4. Nbd2 {[%clk 0:03:00.8]} 4... Bb7 {[%clk 0:02:53.6]} 5. e3 {[%clk 0:03:01.1]}
5... c5 {[%clk 0:02:53.2]} 6. c3 {[%clk 0:02:59.3]} 6... cxd4 {[%clk 0:02:53]}
7. exd4 {[%clk 0:03:00.2]} 7... Be7 {[%clk 0:02:52.4]} 8. Bd3 {[%clk 0:03:00.4]}
8... O-O {[%clk 0:02:52.7]} 9. O-O {[%clk 0:03:00.9]} 9... d6 {[%clk 0:02:53]}
10. Qe2 {[%clk 0:03:01.3]} 10... a6 {[%clk 0:02:52.7]} 11. Rfe1 {[%clk
0:02:59.1]} 11... Nbd7 {[%clk 0:02:53.1]} 12. Ne4 {[%clk 0:02:58.1]} 12... Nxe4
{[%clk 0:02:50.6]} 13. Bxe4 {[%clk 0:02:59]} 13... Bxe4 {[%clk 0:02:49.8]} 14.
Qxe4 {[%clk 0:02:59.9]} 14... Nf6 {[%clk 0:02:49.1]} 15. Qe2 {[%clk 0:02:59.8]}
15... Re8 {[%clk 0:02:47.4]} 16. Rad1 {[%clk 0:02:56.5]} 16... b5 {[%clk
0:02:42.1]} 17. a3 {[%clk 0:02:50.6]} 17... Rc8 {[%clk 0:02:39.4]} 18. Bg5
{[%clk 0:02:48.7]} 18... h6 {[%clk 0:02:34.8]} 19. Bh4 {[%clk 0:02:48]} 19...
Nd5 {[%clk 0:02:29.5]} 20. Bxe7 {[%clk 0:02:46.4]} 20... Qxe7 {[%clk 0:02:28.7]}
21. Nd2 {[%clk 0:02:44.9]} 21... Qc7 {[%clk 0:02:27.4]} 22. Ne4 {[%clk
0:02:26.2]} 22... Red8 {[%clk 0:02:21.8]} 23. Rd3 {[%clk 0:02:24.7]} 23... Nf4
{[%clk 0:02:17.2]} 24. Qd2 {[%clk 0:02:22.8]} 24... Nxd3 {[%clk 0:02:16.3]} 25.
Qxd3 {[%clk 0:02:23.7]} 25... d5 {[%clk 0:02:02.2]} 26. Nd2 {[%clk 0:02:21.2]}
26... Re8 {[%clk 0:01:58.5]} 27. Nf3 {[%clk 0:02:18.8]} 27... Qc4 {[%clk
0:01:54.7]} 28. Qd2 {[%clk 0:02:14.8]} 28... f6 {[%clk 0:01:53.6]} 29. h4 {[%clk
0:02:06.7]} 29... a5 {[%clk 0:01:52.2]} 30. Qf4 {[%clk 0:02:01.3]} 30... e5
{[%clk 0:01:41.1]} 31. Qg4 {[%clk 0:01:19.8]} 31... e4 {[%clk 0:01:35.2]} 32.
Nh2 {[%clk 0:01:13.9]} 32... b4 {[%clk 0:01:32.5]} 33. axb4 {[%clk 0:01:13.1]}
33... axb4 {[%clk 0:01:32]} 34. Re3 {[%clk 0:01:12.5]} 34... bxc3 {[%clk
0:01:31.1]} 35. bxc3 {[%clk 0:01:12.1]} 35... Qc7 {[%clk 0:01:23.7]} 36. Rg3
{[%clk 0:01:02.9]} 36... Qf7 {[%clk 0:01:22.8]} 37. Qf5 {[%clk 0:00:59.7]} 37...
h5 {[%clk 0:01:17.2]} 38. Nf1 {[%clk 0:00:37.6]} 38... e3 {[%clk 0:00:55.9]} 39.
Nxe3 {[%clk 0:00:29.1]} 39... Rxc3 {[%clk 0:00:55.2]} 40. Rg6 {[%clk 0:00:16.8]}
40... Rc1+ {[%clk 0:00:45]} 41. Kh2 {[%clk 0:00:15.9]} 41... Re4 {[%clk
0:00:31]} 42. g3 {[%clk 0:00:05.1]} 42... Qe6 {[%clk 0:00:18.9]} 43. Qxh5 {[%clk
0:00:03.7]} 43... Rxe3 {[%clk 0:00:18.9]} 44. fxe3 {[%clk 0:00:03]} 44... Rc2+
{[%clk 0:00:19]} 45. Kh1 {[%clk 0:00:02.4]} 45... Qe4+ {[%clk 0:00:19]} 46. Kg1
{[%clk 0:00:02.4]} 46... Qg2# {[%clk 0:00:18.8]} 0-1

[Event "*** SCC Grand Prix: Titled Tuesday Blitz"]
[Site "Chess.com"]
[Date "2020.06.09"]
[Round "7"]
[White "eljanov"]
[Black "VitaliyBernadskiy"]
[Result "0-1"]
[WhiteElo "2812"]
[BlackElo "2726"]
[TimeControl "180+1"]
[EndTime "10:19:07 PDT"]
[Termination "VitaliyBernadskiy won on time"]

1. e4 {[%clk 0:03:00.9]} 1... c5 {[%clk 0:02:58]} 2. Nf3 {[%clk 0:03:00.8]} 2...
Nc6 {[%clk 0:02:57.8]} 3. Bb5 {[%clk 0:03:00.7]} 3... g6 {[%clk 0:02:57.8]} 4.
Bxc6 {[%clk 0:03:00.1]} 4... dxc6 {[%clk 0:02:58.7]} 5. d3 {[%clk 0:02:59.8]}
5... Bg7 {[%clk 0:02:57.6]} 6. h3 {[%clk 0:03:00.3]} 6... b6 {[%clk 0:02:56.7]}
7. Nc3 {[%clk 0:02:55.3]} 7... Nh6 {[%clk 0:02:55.9]} 8. Bf4 {[%clk 0:02:45.3]}
8... f6 {[%clk 0:02:55.4]} 9. Qd2 {[%clk 0:02:41.2]} 9... Nf7 {[%clk 0:02:53.3]}
10. e5 {[%clk 0:02:41.6]} 10... O-O {[%clk 0:02:42.2]} 11. O-O {[%clk
0:02:18.9]} 11... g5 {[%clk 0:02:35.6]} 12. Bg3 {[%clk 0:02:10.5]} 12... Bh6
{[%clk 0:02:27.2]} 13. Qe1 {[%clk 0:01:59]} 13... g4 {[%clk 0:02:08.6]} 14. hxg4
{[%clk 0:01:56.6]} 14... Bxg4 {[%clk 0:02:09.5]} 15. Nh2 {[%clk 0:01:47.5]}
15... Bh5 {[%clk 0:02:08.8]} 16. e6 {[%clk 0:01:21]} 16... Nd6 {[%clk
0:02:00.9]} 17. f4 {[%clk 0:00:50.1]} 17... Nf5 {[%clk 0:01:38.1]} 18. Bf2
{[%clk 0:00:50.3]} 18... Bxf4 {[%clk 0:01:24.1]} 19. Bxc5 {[%clk 0:00:32.4]}
19... Qc7 {[%clk 0:01:19.6]} 20. Rxf4 {[%clk 0:00:22.5]} 20... Qxf4 {[%clk
0:01:20.5]} 21. Bf2 {[%clk 0:00:19.4]} 21... Bg6 {[%clk 0:01:17.5]} 22. g4
{[%clk 0:00:15.2]} 22... Nd4 {[%clk 0:01:13.8]} 23. Be3 {[%clk 0:00:09.4]} 23...
Qxh2+ {[%clk 0:01:10.6]} 24. Kxh2 {[%clk 0:00:09.1]} 24... Nf3+ {[%clk
0:01:11.5]} 25. Kg3 {[%clk 0:00:09.5]} 25... Nxe1 {[%clk 0:01:12.4]} 26. Rxe1
{[%clk 0:00:09.7]} 26... Rfd8 {[%clk 0:01:10.8]} 27. g5 {[%clk 0:00:04.8]} 27...
Kg7 {[%clk 0:00:39.8]} 28. Ne2 {[%clk 0:00:03.8]} 28... Rd5 {[%clk 0:00:35.2]}
29. gxf6+ {[%clk 0:00:03.6]} 29... exf6 {[%clk 0:00:35.2]} 30. Nf4 {[%clk
0:00:02.9]} 30... Re5 {[%clk 0:00:34.4]} 31. d4 {[%clk 0:00:01.4]} 31... Re4
{[%clk 0:00:33.9]} 32. c4 {[%clk 0:00:02.1]} 32... Re8 {[%clk 0:00:33.4]} 33. d5
{[%clk 0:00:01.8]} 33... cxd5 {[%clk 0:00:33.3]} 34. cxd5 {[%clk 0:00:02.7]}
34... Bf5 {[%clk 0:00:32.1]} 35. Kf2 {[%clk 0:00:02.9]} 35... Rc8 {[%clk
0:00:28.6]} 36. Nh5+ {[%clk 0:00:03.2]} 36... Kg6 {[%clk 0:00:28.7]} 37. Ng3
{[%clk 0:00:03.5]} 37... Rc2+ {[%clk 0:00:28.8]} 38. Kf3 {[%clk 0:00:04.1]}
38... Re5 {[%clk 0:00:26.8]} 39. Nxf5 {[%clk 0:00:02.9]} 39... Kxf5 {[%clk
0:00:26.1]} 40. Rh1 {[%clk 0:00:01.5]} 40... Rxd5 {[%clk 0:00:15.8]} 41. e7
{[%clk 0:00:02]} 41... Rc8 {[%clk 0:00:15.6]} 42. Rxh7 {[%clk 0:00:01.2]} 42...
Re8 {[%clk 0:00:14.7]} 43. Bh6 {[%clk 0:00:01.5]} 43... Kg6 {[%clk 0:00:13.5]}
0-1

[Event "*** SCC Grand Prix: Titled Tuesday Blitz"]
[Site "Chess.com"]
[Date "2020.06.09"]
[Round "7"]
[White "Love_craft"]
[Black "Arjun2002"]
[Result "1-0"]
[WhiteElo "2456"]
[BlackElo "2636"]
[TimeControl "180+1"]
[EndTime "10:19:08 PDT"]
[Termination "Love_craft won by resignation"]

1. d4 {[%clk 0:03:00.9]} 1... d5 {[%clk 0:02:59.4]} 2. c4 {[%clk 0:03:00.8]}
2... c6 {[%clk 0:02:58.9]} 3. Nd2 {[%clk 0:03:00.4]} 3... Nf6 {[%clk 0:02:56.1]}
4. Ngf3 {[%clk 0:03:00.5]} 4... Bf5 {[%clk 0:02:54.9]} 5. g3 {[%clk 0:02:56.2]}
5... e6 {[%clk 0:02:53.3]} 6. Bg2 {[%clk 0:02:56.5]} 6... h6 {[%clk 0:02:53.4]}
7. O-O {[%clk 0:02:56.6]} 7... Be7 {[%clk 0:02:53.4]} 8. b3 {[%clk 0:02:57.1]}
8... O-O {[%clk 0:02:53.4]} 9. Bb2 {[%clk 0:02:57.7]} 9... Nbd7 {[%clk 0:02:54]}
10. Rc1 {[%clk 0:02:57.3]} 10... a5 {[%clk 0:02:54.2]} 11. a3 {[%clk 0:02:57.1]}
11... b5 {[%clk 0:02:45.5]} 12. cxb5 {[%clk 0:02:50.2]} 12... cxb5 {[%clk
0:02:45.3]} 13. Ne5 {[%clk 0:02:51.1]} 13... Nxe5 {[%clk 0:02:38.9]} 14. dxe5
{[%clk 0:02:52]} 14... Ne4 {[%clk 0:02:29.2]} 15. Nxe4 {[%clk 0:02:51.3]} 15...
Bxe4 {[%clk 0:02:29.5]} 16. Bxe4 {[%clk 0:02:47.7]} 16... dxe4 {[%clk
0:02:30.4]} 17. Qc2 {[%clk 0:02:29.9]} 17... Qd5 {[%clk 0:02:29.9]} 18. Rfd1
{[%clk 0:02:27.4]} 18... Rac8 {[%clk 0:02:28.8]} 19. Rxd5 {[%clk 0:01:47.8]}
19... Rxc2 {[%clk 0:02:28.1]} 20. Rxc2 {[%clk 0:01:48.7]} 20... exd5 {[%clk
0:02:28.5]} 21. Rc7 {[%clk 0:01:49.2]} 21... Bg5 {[%clk 0:02:06.8]} 22. h4
{[%clk 0:01:14.3]} 22... Bd2 {[%clk 0:02:06.2]} 23. Rd7 {[%clk 0:01:14.4]} 23...
Rc8 {[%clk 0:02:01.9]} 24. Rxd5 {[%clk 0:01:12.4]} 24... Rc2 {[%clk 0:02:01.9]}
25. Bd4 {[%clk 0:01:10]} 25... Ra2 {[%clk 0:01:36.4]} 26. Rd8+ {[%clk
0:01:08.8]} 26... Kh7 {[%clk 0:01:35.8]} 27. Rd7 {[%clk 0:01:09.7]} 27... Kg8
{[%clk 0:01:30.1]} 28. e6 {[%clk 0:00:27.4]} 28... fxe6 {[%clk 0:01:28.6]} 29.
Rxg7+ {[%clk 0:00:27.9]} 29... Kf8 {[%clk 0:01:28.9]} 30. Rd7 {[%clk 0:00:28.8]}
30... b4 {[%clk 0:01:20.1]} 31. axb4 {[%clk 0:00:22.1]} 31... Bxb4 {[%clk
0:01:18.2]} 32. Bg7+ {[%clk 0:00:17]} 32... Ke8 {[%clk 0:01:17.7]} 33. Rb7
{[%clk 0:00:17.4]} 33... Rxe2 {[%clk 0:01:16.2]} 34. Bxh6 {[%clk 0:00:16.6]}
34... Bc5 {[%clk 0:01:15.7]} 35. Be3 {[%clk 0:00:15]} 35... Bxe3 {[%clk
0:01:15.6]} 36. fxe3 {[%clk 0:00:15.9]} 36... Rxe3 {[%clk 0:01:16]} 37. Kf2
{[%clk 0:00:16.1]} 37... Rf3+ {[%clk 0:01:15.7]} 38. Kg2 {[%clk 0:00:16.5]}
38... Rc3 {[%clk 0:01:11.8]} 39. Rb5 {[%clk 0:00:16.1]} 39... Ke7 {[%clk
0:01:04.4]} 40. Rxa5 {[%clk 0:00:15.4]} 40... Kf6 {[%clk 0:01:01.7]} 41. Rb5
{[%clk 0:00:12.8]} 41... Rc2+ {[%clk 0:00:58.5]} 42. Kf1 {[%clk 0:00:12.1]}
42... e5 {[%clk 0:00:56]} 43. g4 {[%clk 0:00:12.4]} 43... e3 {[%clk 0:00:55.8]}
44. Rb8 {[%clk 0:00:10.7]} 44... e4 {[%clk 0:00:55.4]} 45. b4 {[%clk 0:00:10.4]}
45... Ke5 {[%clk 0:00:55.4]} 46. g5 {[%clk 0:00:07.2]} 46... Kf4 {[%clk
0:00:55.4]} 47. Rf8+ {[%clk 0:00:07.2]} 47... Kg4 {[%clk 0:00:55.1]} 48. g6
{[%clk 0:00:07.4]} 48... Rc7 {[%clk 0:00:51.4]} 49. Rf7 {[%clk 0:00:07.7]} 49...
Rc8 {[%clk 0:00:50.1]} 50. g7 {[%clk 0:00:08.1]} 50... Rg8 {[%clk 0:00:50.2]}
51. Ke2 {[%clk 0:00:08.5]} 51... Kxh4 {[%clk 0:00:49.9]} 52. Kxe3 {[%clk
0:00:08.7]} 52... Kg5 {[%clk 0:00:50.4]} 53. Kxe4 {[%clk 0:00:08.8]} 53... Kg6
{[%clk 0:00:51.3]} 54. Rb7 {[%clk 0:00:08.9]} 54... Kh7 {[%clk 0:00:51.3]} 55.
Kd5 {[%clk 0:00:08.9]} 55... Rc8 {[%clk 0:00:51.3]} 56. b5 {[%clk 0:00:08.2]}
56... Rc7 {[%clk 0:00:51.7]} 57. Rxc7 {[%clk 0:00:07.8]} 1-0

[Event "*** SCC Grand Prix: Titled Tuesday Blitz"]
[Site "Chess.com"]
[Date "2020.06.09"]
[Round "7"]
[White "PauloFanha"]
[Black "HanSchut"]
[Result "0-1"]
[WhiteElo "1989"]
[BlackElo "2188"]
[TimeControl "180+1"]
[EndTime "10:19:08 PDT"]
[Termination "HanSchut won by resignation"]

1. e4 {[%clk 0:03:00.9]} 1... c5 {[%clk 0:02:59.6]} 2. Nf3 {[%clk 0:02:59.8]}
2... d6 {[%clk 0:02:59.9]} 3. Bb5+ {[%clk 0:02:59.3]} 3... Nd7 {[%clk
0:02:59.2]} 4. O-O {[%clk 0:02:57.6]} 4... a6 {[%clk 0:02:59.5]} 5. Bxd7+ {[%clk
0:02:56.6]} 5... Qxd7 {[%clk 0:02:59.5]} 6. d4 {[%clk 0:02:52.7]} 6... cxd4
{[%clk 0:02:59.1]} 7. Qxd4 {[%clk 0:02:51.6]} 7... Nf6 {[%clk 0:02:57.3]} 8. c4
{[%clk 0:02:47.5]} 8... e6 {[%clk 0:02:50.4]} 9. Nc3 {[%clk 0:02:46.4]} 9... Be7
{[%clk 0:02:51]} 10. b3 {[%clk 0:02:42.8]} 10... O-O {[%clk 0:02:51]} 11. Bb2
{[%clk 0:02:42.4]} 11... b5 {[%clk 0:02:50.5]} 12. cxb5 {[%clk 0:02:37.7]} 12...
axb5 {[%clk 0:02:50.8]} 13. a4 {[%clk 0:02:33.8]} 13... bxa4 {[%clk 0:02:45.2]}
14. Rxa4 {[%clk 0:02:31.7]} 14... Bb7 {[%clk 0:02:36.1]} 15. Rfa1 {[%clk
0:02:26.3]} 15... Rxa4 {[%clk 0:02:20.7]} 16. Rxa4 {[%clk 0:02:18.5]} 16... Ra8
{[%clk 0:02:18.9]} 17. Rxa8+ {[%clk 0:02:15.1]} 17... Bxa8 {[%clk 0:02:18.6]}
18. h3 {[%clk 0:02:06.3]} 18... Qb7 {[%clk 0:02:15.9]} 19. e5 {[%clk 0:01:40.7]}
19... dxe5 {[%clk 0:02:10.6]} 20. Qxe5 {[%clk 0:01:34.7]} 20... Qxb3 {[%clk
0:01:49.2]} 21. Ne2 {[%clk 0:01:29.5]} 21... Bxf3 {[%clk 0:01:36.8]} 22. gxf3
{[%clk 0:01:27.4]} 22... h6 {[%clk 0:01:04.9]} 23. Kg2 {[%clk 0:01:12.8]} 23...
Qd5 {[%clk 0:00:58.8]} 24. Nf4 {[%clk 0:01:03.8]} 24... Qxe5 {[%clk 0:00:54.4]}
25. Bxe5 {[%clk 0:01:04.2]} 25... Nd5 {[%clk 0:00:44.3]} 26. Nd3 {[%clk
0:00:59.4]} 26... f6 {[%clk 0:00:40]} 27. Bd4 {[%clk 0:00:52.5]} 27... Bd6
{[%clk 0:00:40.3]} 28. Bc5 {[%clk 0:00:46.5]} 28... Bxc5 {[%clk 0:00:39.1]} 29.
Nxc5 {[%clk 0:00:45.6]} 29... Kf7 {[%clk 0:00:39.6]} 30. Nd3 {[%clk 0:00:43.5]}
30... g5 {[%clk 0:00:39.4]} 31. Kg3 {[%clk 0:00:40.8]} 31... Kg6 {[%clk
0:00:35.6]} 32. Kg2 {[%clk 0:00:38]} 32... Nf4+ {[%clk 0:00:33.4]} 33. Kg3
{[%clk 0:00:36.6]} 33... Nxd3 {[%clk 0:00:32.6]} 34. Kg4 {[%clk 0:00:31.5]}
34... f5+ {[%clk 0:00:26.6]} 35. Kg3 {[%clk 0:00:30.9]} 35... f4+ {[%clk
0:00:27.1]} 36. Kg2 {[%clk 0:00:28.7]} 36... Kf5 {[%clk 0:00:26.9]} 37. h4
{[%clk 0:00:28.2]} 37... e5 {[%clk 0:00:25.5]} 38. hxg5 {[%clk 0:00:25.9]} 38...
hxg5 {[%clk 0:00:26.4]} 39. Kf1 {[%clk 0:00:23.8]} 39... e4 {[%clk 0:00:20.4]}
40. fxe4+ {[%clk 0:00:22.8]} 40... Kxe4 {[%clk 0:00:21.3]} 41. Ke2 {[%clk
0:00:21.1]} 41... f3+ {[%clk 0:00:21.6]} 42. Kf1 {[%clk 0:00:20.4]} 42... Nxf2
{[%clk 0:00:18.1]} 43. Kg1 {[%clk 0:00:20.9]} 43... Nd3 {[%clk 0:00:17.5]} 44.
Kf1 {[%clk 0:00:20.2]} 44... Ke3 {[%clk 0:00:17.9]} 45. Kg1 {[%clk 0:00:20.7]}
45... Ke2 {[%clk 0:00:17.8]} 46. Kh1 {[%clk 0:00:19.9]} 46... f2 {[%clk
0:00:17]} 47. Kh2 {[%clk 0:00:19.6]} 47... f1=Q {[%clk 0:00:16.3]} 48. Kg3
{[%clk 0:00:20]} 48... Qf4+ {[%clk 0:00:16.9]} 49. Kg2 {[%clk 0:00:19.6]} 49...
Ne1+ {[%clk 0:00:16.2]} 50. Kh3 {[%clk 0:00:18.6]} 50... Qf3+ {[%clk 0:00:12.7]}
0-1

[Event "*** SCC Grand Prix: Titled Tuesday Blitz"]
[Site "Chess.com"]
[Date "2020.06.09"]
[Round "7"]
[White "KhatanbaatarBazar"]
[Black "MusicCityMaster"]
[Result "1/2-1/2"]
[WhiteElo "2461"]
[BlackElo "2333"]
[TimeControl "180+1"]
[EndTime "10:19:09 PDT"]
[Termination "Game drawn by repetition"]

1. e4 {[%clk 0:03:00.9]} 1... c5 {[%clk 0:02:59.2]} 2. Nf3 {[%clk 0:03:00.5]}
2... d6 {[%clk 0:02:59]} 3. Bb5+ {[%clk 0:02:59]} 3... Nd7 {[%clk 0:02:57.8]} 4.
c3 {[%clk 0:02:58.9]} 4... a6 {[%clk 0:02:56.6]} 5. Ba4 {[%clk 0:02:57.8]} 5...
Nf6 {[%clk 0:02:51.6]} 6. Qe2 {[%clk 0:02:57.7]} 6... e6 {[%clk 0:02:45]} 7. O-O
{[%clk 0:02:56]} 7... Be7 {[%clk 0:02:44.6]} 8. d4 {[%clk 0:02:55.8]} 8... b5
{[%clk 0:02:30.7]} 9. Bc2 {[%clk 0:02:54.2]} 9... cxd4 {[%clk 0:02:25.8]} 10.
cxd4 {[%clk 0:02:53.5]} 10... Bb7 {[%clk 0:02:25.9]} 11. Nc3 {[%clk 0:02:52.4]}
11... Rc8 {[%clk 0:02:17.2]} 12. a3 {[%clk 0:02:50.4]} 12... Nb6 {[%clk
0:02:14.8]} 13. Rd1 {[%clk 0:02:49.9]} 13... O-O {[%clk 0:02:10.2]} 14. Bd3
{[%clk 0:02:49.4]} 14... Rc7 {[%clk 0:01:59.9]} 15. Bg5 {[%clk 0:02:47.1]} 15...
Re8 {[%clk 0:01:54.5]} 16. e5 {[%clk 0:02:45.7]} 16... Nfd5 {[%clk 0:01:52.7]}
17. Bxe7 {[%clk 0:02:43.4]} 17... Qxe7 {[%clk 0:01:52.5]} 18. Ne4 {[%clk
0:02:41.3]} 18... dxe5 {[%clk 0:01:48.3]} 19. dxe5 {[%clk 0:02:39.3]} 19... Nf4
{[%clk 0:01:48]} 20. Qe3 {[%clk 0:02:35.1]} 20... Nbd5 {[%clk 0:01:48.1]} 21.
Qd2 {[%clk 0:02:31.6]} 21... Nxd3 {[%clk 0:01:35.2]} 22. Qxd3 {[%clk 0:02:30.9]}
22... Nf4 {[%clk 0:01:16.8]} 23. Qe3 {[%clk 0:02:29.6]} 23... Bxe4 {[%clk
0:01:09.6]} 24. Qxe4 {[%clk 0:02:27.3]} 24... Nd5 {[%clk 0:01:09.4]} 25. h4
{[%clk 0:02:17.3]} 25... h6 {[%clk 0:01:06.1]} 26. Rd4 {[%clk 0:02:16.3]} 26...
Rec8 {[%clk 0:01:05.3]} 27. Rad1 {[%clk 0:02:15.5]} 27... Rc2 {[%clk 0:01:01.2]}
28. R4d2 {[%clk 0:02:10.7]} 28... R2c4 {[%clk 0:00:59.1]} 29. Nd4 {[%clk
0:02:04.5]} 29... Qc5 {[%clk 0:00:54.6]} 30. g3 {[%clk 0:01:58.3]} 30... Rc1
{[%clk 0:00:47.2]} 31. Kg2 {[%clk 0:01:55.3]} 31... Rxd1 {[%clk 0:00:43.5]} 32.
Rxd1 {[%clk 0:01:55.2]} 32... b4 {[%clk 0:00:42.2]} 33. Rd2 {[%clk 0:01:52.9]}
33... bxa3 {[%clk 0:00:41]} 34. Rc2 {[%clk 0:01:45.3]} 34... Qf8 {[%clk
0:00:26]} 35. bxa3 {[%clk 0:01:37.6]} 35... Rxc2 {[%clk 0:00:24]} 36. Nxc2
{[%clk 0:01:37.2]} 36... Qc5 {[%clk 0:00:24.4]} 37. Qd3 {[%clk 0:01:32.7]} 37...
a5 {[%clk 0:00:23.8]} 38. Nd4 {[%clk 0:01:29.7]} 38... a4 {[%clk 0:00:19.9]} 39.
Nf3 {[%clk 0:01:22.2]} 39... Nc3 {[%clk 0:00:18.7]} 40. Qd8+ {[%clk 0:01:20.3]}
40... Kh7 {[%clk 0:00:18]} 41. Qe8 {[%clk 0:01:20]} 41... Qd5 {[%clk 0:00:14.3]}
42. Qxf7 {[%clk 0:01:17]} 42... Nb5 {[%clk 0:00:13.7]} 43. Kh2 {[%clk
0:01:12.7]} 43... Nxa3 {[%clk 0:00:13.3]} 44. h5 {[%clk 0:01:12.6]} 44... Qe4
{[%clk 0:00:13.7]} 45. Nh4 {[%clk 0:01:10.8]} 45... Nc4 {[%clk 0:00:13.1]} 46.
Ng6 {[%clk 0:01:09.2]} 46... Qf5 {[%clk 0:00:12.3]} 47. Nf8+ {[%clk 0:01:07]}
47... Kh8 {[%clk 0:00:12.2]} 48. Qe8 {[%clk 0:01:06.9]} 48... Qxf2+ {[%clk
0:00:09.1]} 49. Kh3 {[%clk 0:01:06]} 49... Qf1+ {[%clk 0:00:08.9]} 50. Kh4
{[%clk 0:01:04.2]} 50... Qh1+ {[%clk 0:00:08.8]} 51. Kg4 {[%clk 0:01:03.6]}
51... Qe4+ {[%clk 0:00:09]} 52. Kh3 {[%clk 0:01:03.5]} 52... Qh1+ {[%clk
0:00:09]} 53. Kg4 {[%clk 0:01:03.3]} 53... Qe4+ {[%clk 0:00:09]} 54. Kh3 {[%clk
0:01:03]} 54... Qh1+ {[%clk 0:00:09]} 55. Kg4 {[%clk 0:01:02.9]} 1/2-1/2